bitfinex-derivatives/quotes_ETHF0:USTF0_20250321
["timestamp","ask_amount","ask_price","bid_price","bid_amount"]
[1742570882225,2.35328794,1952.5,1952.4,2.99407]
[1742570882521,0.00767794,1952.5,1952.4,2.99407]
[1742570882722,0.00767794,1952.5,1952.4,6.20187]
[1742570883828,3.2078,1953.1,1952.9,1.02456]
[1742570884014,5.15167,1953.2,1953.1,1.0245]
[1742570884214,1.02443,1953.3,1953.2,1.02445]
[1742570884419,1.02438,1953.4,1953.3,1.02437]
[1742570884725,1.02441,1953.3,1953.2,1.0244]
[1742570884926,1.02441,1953.3,1953.2,1.03207794]
[1742570885126,1.2916,1953.3,1953.2,0.00767794]
[1742570885325,5.52379,1953.3,1953.2,0.00767794]
[1742570885523,5.61210367,1953.3,1953.2,0.00767794]
[1742570885728,9.05510367,1953.3,1953.2,0.00767794]
[1742570886426,1.02455,1953.0,1952.9,3.443]
[1742570886616,2.56121,1953.2,1952.7,5.12558]
[1742570886617,1.02466,1952.8,1952.7,5.12558]
[1742570886820,1.02466,1952.8,1952.7,1.68258]
[1742570887020,1.3948,1952.9,1952.8,1.02466]
[1742570887629,4.46754,1953.1,1953.0,1.02455]
[1742570887925,0.678,1953.2,1953.1,1.0245]
[1742570888129,9.848,1953.4,1953.3,1.02439]
[1742570888130,10.87238,1953.4,1953.3,1.02439]
[1742570888426,3.21547794,1953.5,1953.4,1.02434]
[1742570888633,0.00767794,1953.5,1953.4,1.02434]
[1742570889432,1.40247794,1953.5,1953.4,1.02434]
[1742570889630,1.02435,1953.4,1953.3,1.02434]
[1742570889827,1.02445,1953.2,1953.1,5.16205]
[1742570890030,1.0245,1953.1,1953.0,0.6981]
[1742570890233,2.4309,1953.1,1953.0,0.6981]
[1742570890734,1.0246,1952.9,1952.8,0.6946]
[1742570892037,1.0246,1952.9,1952.8,1.71926]
[1742570892632,1.02459,1953.0,1952.9,1.02458]
[1742570892833,2.34929,1953.0,1952.9,1.02458]
[1742570893830,1.0246,1952.9,1952.8,0.6946]
[1742570894026,2.3493,1952.9,1952.8,1.71926]
[1742570894835,1.3247,1952.9,1952.8,1.71926]
[1742570895036,4.23232,1953.1,1953.0,1.02455]
[1742570895233,3.2078,1953.1,1953.0,1.02455]
[1742570895838,4.4665,1953.2,1953.1,1.0245]
[1742570896139,3.442,1953.2,1953.1,1.0245]
[1742570896626,1.3037,1953.3,1953.2,1.02445]
[1742570896832,5.77004,1953.4,1953.3,1.02439]
[1742570897038,1.02442,1953.3,1953.2,1.0244]
[1742570897228,1.02448,1953.2,1953.1,1.02447]
[1742570897826,1.02448,1953.2,1953.1,41.82447]
[1742570898229,1.02436,1953.4,1953.3,1.02439]
[1742570898536,0.00767794,1953.5,1953.4,1.02434]
[1742570898743,2.33566794,1953.5,1953.4,1.02434]
[1742570899442,1.31137794,1953.5,1953.4,2.31294]
[1742570899639,4.1203,1954.0,1953.4,1.2886]
[1742570899943,0.6783,1954.0,1953.9,1.02408]
[1742570900435,2.38708,1954.1,1954.0,1.02403]
[1742570901134,1.02403,1954.0,1953.9,2.32034794]
[1742570901444,2.38713,1954.0,1953.9,0.00767794]
[1742570901839,2.47540325,1954.0,1953.9,0.00767794]
[1742570902345,2.38713,1954.0,1953.9,0.00767794]
[1742570902543,2.38713,1954.0,1953.9,1.03175794]
[1742570902544,1.3631,1954.0,1953.9,1.03175794]
[1742570902842,1.3631,1954.0,1953.9,2.32055794]
[1742570903040,1.3631,1954.0,1953.9,3.01625794]
[1742570903843,2.38713,1954.0,1953.9,3.01625794]
[1742570904238,1.3631,1954.0,1953.9,3.01625794]
[1742570904845,1.02402,1954.1,1954.0,1.02402]
[1742570905546,1.03162794,1954.2,1954.1,1.02398]
[1742570905850,1.03159794,1954.2,1954.1,1.02398]
[1742570906141,1.02398,1954.1,1954.0,3.00539]
[1742570906351,1.41107794,1954.2,1953.9,5.16841794]
[1742570906352,1.02403,1954.0,1953.9,5.16841794]
[1742570906651,2.42743,1954.0,1953.9,1.32177794]
[1742570907447,2.42743,1954.0,1953.9,0.00767794]
[1742570907650,2.51570862,1954.0,1953.9,0.00767794]
[1742570907846,2.42743,1954.0,1953.9,0.00767794]
[1742570908342,2.42743,1954.0,1953.9,2.38825794]
[1742570908544,4.23941794,1954.2,1954.1,1.02398]
[1742570908748,5.61399794,1954.2,1954.1,1.02398]
[1742570909150,1.02398,1954.1,1954.0,1.68739]
[1742570909342,2.39858,1954.1,1954.0,1.68739]
[1742570909650,2.39858,1954.1,1954.0,0.6634]
[1742570910452,2.39858,1954.1,1954.0,1.68743]
[1742570910951,1.3746,1954.1,1954.0,1.68743]
[1742570911353,2.39858,1954.1,1954.0,1.68743]
[1742570913160,0.00767794,1954.2,1954.1,1.02398]
[1742570913566,0.00767794,1954.2,1954.1,4.93708]
[1742570913863,1.02369,1954.7,1954.6,1.02371]
[1742570914061,3.44,1954.9,1954.7,1.02366]
[1742570914062,1.02365,1954.8,1954.7,1.02366]
[1742570914368,1.02363,1954.8,1954.7,1.02364]
[1742570915263,2.44393,1954.8,1954.7,1.02364]
[1742570915563,0.00767794,1954.9,1954.8,1.02361]
[1742570915968,1.03123794,1954.9,1954.8,1.02361]
[1742570916169,1.02364,1954.8,1954.7,1.02362]
[1742570916554,1.42797794,1954.9,1954.5,47.50471]
[1742570916762,2.44398,1954.7,1954.6,1.02366]
[1742570917756,1.4203,1954.7,1954.4,0.7108]
[1742570917963,2.42326,1954.6,1954.5,1.02377]
[1742570918469,1.3995,1954.6,1954.5,1.02377]
[1742570918859,0.00767794,1954.9,1954.8,1.02361]
[1742570919054,1.40717794,1954.9,1954.8,1.02361]
[1742570919363,2.43073794,1954.9,1954.8,40.8]
[1742570919961,1.02361,1954.8,1954.7,1.02363]
[1742570920266,1.4283,1954.8,1954.7,1.02363]
[1742570920460,0.00767794,1954.9,1954.8,1.02361]
[1742570920661,2.45953794,1954.9,1954.8,1.02361]
[1742570921063,2.45953794,1954.9,1954.8,41.82361]
[1742570922162,2.45953794,1954.9,1954.8,40.8]
[1742570922471,2.45957794,1954.9,1954.8,1.02361]
[1742570924170,2.45953794,1954.9,1954.8,1.02361]
[1742570924771,1.43597794,1954.9,1954.8,1.02361]
[1742570925165,0.00767794,1954.9,1954.8,1.02361]
[1742570925567,1.36367794,1954.9,1954.8,1.67791]
[1742570927266,2.38723794,1954.9,1954.8,1.67791]
[1742570927774,1.36367794,1954.9,1954.8,3.00091]
[1742570928064,2.38723794,1954.9,1954.8,3.00091]
[1742570928471,1.36367794,1954.9,1954.8,3.00091]
[1742570928869,2.38723794,1954.9,1954.8,3.00091]
[1742570929372,1.36367794,1954.9,1954.8,3.00091]
[1742570929669,2.38723794,1954.9,1954.8,3.00091]
[1742570930172,1.36367794,1954.9,1954.8,3.00091]
[1742570930470,2.38723794,1954.9,1954.8,1.9773]
[1742570930671,2.38723794,1954.9,1954.8,3.00091]
[1742570931265,2.38723794,1954.9,1954.8,1.9773]
[1742570931471,2.38723794,1954.9,1954.6,1.02367]
[1742570931472,1.02366,1954.7,1954.6,1.02367]
[1742570931659,3.10054,1954.8,1954.7,1.02366]
[1742570932063,3.10054,1954.8,1954.7,41.82366]
[1742570932864,2.39001,1954.8,1954.7,1.02366]
[1742570933072,1.3664,1954.8,1954.7,1.02366]
[1742570933269,0.00767794,1954.9,1954.8,1.02361]
[1742570934069,1.42527794,1954.9,1954.8,2.35331]
[1742570934470,2.44883794,1954.9,1954.8,2.35331]
[1742570934675,1.42527794,1954.9,1954.8,2.35331]
[1742570934868,1.42527794,1954.9,1954.8,3.66421]
[1742570935265,2.44883794,1954.9,1954.8,3.66421]
[1742570935465,1.42527794,1954.9,1954.8,3.66421]
[1742570935973,2.44883794,1954.9,1954.8,3.66421]
[1742570936470,1.42527794,1954.9,1954.8,3.66421]
[1742570936673,2.44883794,1954.9,1954.8,3.66421]
[1742570936871,1.42527794,1954.9,1954.8,3.66421]
[1742570937271,2.44883794,1954.9,1954.8,3.66421]
[1742570937664,1.42527794,1954.9,1954.8,3.66421]
[1742570938066,2.44883794,1954.9,1954.8,3.66421]
[1742570938269,1.42527794,1954.9,1954.8,3.66421]
[1742570939673,2.44883794,1954.9,1954.8,3.66421]
[1742570939976,2.44883794,1954.9,1954.8,1.02361]
[1742570940472,1.02361,1954.8,1954.7,2.42182]
[1742570940667,1.02366,1954.7,1954.6,41.82371]
[1742570943272,1.02366,1954.7,1954.6,40.8]
[1742570943474,6.6458,1954.7,1954.2,0.6639]
[1742570943666,4.23159,1954.5,1954.4,1.02377]
[1742570944070,4.6308,1954.5,1954.4,1.02377]
[1742570944269,2.44677,1954.5,1954.4,2.36087]
[1742570945081,1.02382,1954.4,1954.3,40.8]
[1742570945380,2.32132,1954.4,1954.3,40.8]
[1742570945579,5.52912,1954.4,1954.3,40.8]
[1742570945775,1.02401,1954.1,1954.0,1.02399]
[1742570946078,1.02402,1954.1,1954.0,1.024]
[1742570946378,1.02403,1954.0,1953.9,0.00767794]
[1742570946574,6.27130405,1954.0,1953.9,0.00767794]
[1742570946876,6.27130405,1954.0,1953.5,3.438]
[1742570946877,1.02425,1953.6,1953.5,1.02425]
[1742570947176,1.02425,1953.6,1953.5,2.31209]
[1742570947584,2.38751,1953.7,1953.6,1.02424]
[1742570947881,1.02424,1953.6,1953.5,2.31206]
[1742570948072,2.38754,1953.6,1953.5,1.2878]
[1742570948268,1.02429,1953.5,1953.4,0.00767794]
[1742570948477,2.38759,1953.5,1953.4,0.00767794]
[1742570948884,5.59539,1953.5,1953.4,0.00767794]
[1742570949277,5.68369131,1953.5,1953.4,0.00767794]
[1742570949875,5.59539,1953.5,1953.4,0.00767794]
[1742570950082,5.68369121,1953.5,1953.4,0.00767794]
[1742570950281,5.59539,1953.5,1953.4,0.00767794]
[1742570951277,1.3633,1953.5,1953.4,1.03201794]
[1742570951477,1.3633,1953.5,1953.4,2.35631794]
[1742570951671,1.02426,1953.6,1953.5,1.02425]
[1742570951869,2.40286,1953.6,1953.5,2.34855]
[1742570952074,2.40286,1953.6,1953.5,43.14855]
[1742570952580,1.3786,1953.6,1953.5,43.14855]
[1742570952883,2.40284,1953.6,1953.5,43.14859]
[1742570953185,1.3786,1953.6,1953.5,43.14859]
[1742570953878,2.40284,1953.6,1953.5,43.14859]
[1742570954071,2.40284,1953.6,1953.5,42.1243]
[1742570954371,1.3786,1953.6,1953.5,43.14859]
[1742570954572,5.14312794,1953.8,1953.7,1.02419]
[1742570954776,1.0242,1953.7,1953.6,1.02421]
[1742570954977,5.14314794,1953.8,1953.6,1.02421]
[1742570955179,0.00767794,1953.8,1953.7,1.02419]
[1742570955377,0.00767794,1953.8,1953.5,48.104]
[1742570955785,1.03183794,1953.8,1953.7,1.02419]
[1742570956483,0.00767794,1953.8,1953.7,1.02419]
[1742570956883,1.03180794,1953.8,1953.7,1.02419]
[1742570957281,1.02419,1953.7,1953.6,2.37051]
[1742570957485,1.2909,1953.7,1953.6,2.37051]
[1742570958084,0.00767794,1953.8,1953.7,1.02419]
[1742570958284,1.03180794,1953.8,1953.7,1.02419]
[1742570959682,0.00767794,1953.8,1953.7,1.02419]
[1742570960076,0.00767794,1953.8,1953.7,4.46319]
[1742570960683,1.03180794,1953.8,1953.7,4.46319]
[1742570961081,1.03180794,1953.8,1953.6,1.3463]
[1742570961287,1.03180794,1953.8,1953.7,1.02419]
[1742570961487,1.02419,1953.7,1953.6,2.3705]
[1742570962989,1.02419,1953.7,1953.6,1.3463]
[1742570963492,1.02419,1953.7,1953.6,2.37054]
[1742570968702,1.03180794,1953.8,1953.7,1.02419]
[1742570968996,1.03180794,1953.8,1953.7,2.32599]
[1742570968997,0.00767794,1953.8,1953.7,2.32599]
[1742570969899,1.03180794,1953.8,1953.7,2.32599]
[1742570970103,0.00767794,1953.8,1953.7,2.32599]
[1742570971598,1.03180794,1953.8,1953.7,2.32599]
[1742570971995,0.00767794,1953.8,1953.7,2.32599]
[1742570973497,3.8865,1954.3,1953.7,6.4227]
[1742570973708,1.02408,1954.0,1953.9,1.02406]
[1742570974003,1.02408,1954.0,1953.9,2.39826]
[1742570974301,1.02408,1954.0,1953.9,3.08506]
[1742570974500,1.02402,1954.1,1954.0,1.02399]
[1742570974703,1.03169794,1954.1,1954.0,2.39819]
[1742570975598,1.03169794,1954.1,1954.0,1.3742]
[1742570975804,1.02408,1953.9,1953.8,1.0241]
[1742570975997,1.02417,1953.8,1953.7,1.02414]
[1742570976402,1.02417,1953.8,1953.7,2.35894]
[1742570976898,1.02417,1953.8,1953.7,1.3348]
[1742570977097,1.02419,1953.7,1953.6,0.6584]
[1742570977303,1.02419,1953.7,1953.6,1.68264]
[1742570977497,1.02424,1953.6,1953.5,40.8]
[1742570977700,2.36334,1953.6,1953.5,1.3348]
[1742570978803,1.02429,1953.5,1953.4,40.80767794]
[1742570979003,2.98069,1953.5,1953.4,41.83201794]
[1742570979506,2.98069,1953.5,1953.4,43.14801794]
[1742570979903,2.98069,1953.5,1953.4,42.12367794]
[1742570980203,2.98069,1953.5,1953.0,3.8879]
[1742570980204,2.5609,1953.4,1953.0,3.8879]
[1742570980400,2.5609,1953.4,1953.1,1.02447]
[1742570980401,1.02446,1953.2,1953.1,1.02447]
[1742570980606,1.02446,1953.2,1953.1,41.82447]
[1742570980803,1.02446,1953.2,1953.1,40.8]
[1742570981304,1.0245,1953.1,1953.0,1.316]
[1742570981504,3.0489,1953.1,1953.0,2.34822794]
[1742570981900,2.0244,1953.1,1953.0,46.35602794]
[1742570982210,1.02444,1953.3,1953.2,1.02442]
[1742570982809,1.02445,1953.2,1953.1,2.31787]
[1742570983305,1.02445,1953.2,1953.1,2.3179]
[1742570985105,2.35304,1953.3,1953.1,1.2934]
[1742570985409,1.3286,1953.3,1953.2,2.41845]
[1742570986396,3.2078,1953.7,1953.3,1.02439]
[1742570986602,2.34849,1953.6,1953.5,1.02426]
[1742570986903,2.34849,1953.6,1953.5,2.41826]
[1742570987097,2.34849,1953.6,1953.5,1.394]
[1742570987509,2.34849,1953.6,1953.5,2.41829]
[1742570988109,2.34849,1953.6,1953.5,1.394]
[1742570988311,1.3242,1953.6,1953.2,3.8961]
[1742570988512,1.02438,1953.4,1953.3,1.3356]
[1742570988997,1.70008,1953.4,1953.3,2.35999]
[1742570989408,0.6757,1953.4,1953.3,2.35999]
[1742570989609,1.70004,1953.4,1953.3,2.35999]
[1742570990601,1.70004,1953.4,1953.3,1.3356]
[1742570991414,3.11114,1953.4,1953.3,1.3356]
[1742570992213,1.02439,1953.3,1953.2,2.36471]
[1742570992407,2.43549,1953.3,1953.2,2.6659]
[1742570993616,2.43549,1953.3,1953.2,3.69035]
[1742570994510,2.43549,1953.3,1953.2,2.6659]
[1742570994921,1.0245,1953.1,1953.0,40.80767794]
[1742570995112,1.0245,1953.1,1953.0,42.09907794]
[1742570995311,2.36858,1953.2,1953.1,1.0245]
[1742570995517,2.36858,1953.2,1953.1,2.3159]
[1742570995718,1.3441,1953.2,1953.1,2.3159]
[1742570997018,2.36855,1953.2,1953.1,2.3159]
[1742570998712,2.36855,1953.2,1953.1,1.2914]
[1742570999111,2.36855,1953.2,1953.1,2.3159]
[1742571000314,1.0245,1953.1,1953.0,40.80767794]
[1742571000513,2.4282,1953.1,1953.0,40.80767794]
[1742571001218,2.4282,1953.1,1953.0,41.83222794]
[1742571001415,2.4282,1953.1,1953.0,43.14072794]
[1742571001812,2.4282,1953.1,1953.0,40.80767794]
[1742571002219,5.636,1953.1,1953.0,0.00767794]
[1742571003018,5.72432115,1953.1,1953.0,0.00767794]
[1742571003821,5.72432641,1953.1,1953.0,0.00767794]
[1742571004923,7.19982641,1953.1,1952.3,4.23267]
[1742571005111,1.02487,1952.4,1952.3,1.4123]
[1742571005423,3.439,1952.7,1952.3,3.97455]
[1742571005721,1.02478,1952.6,1952.5,1.02477]
[1742571006121,1.3909,1952.6,1952.5,1.02477]
[1742571006316,2.42328794,1952.7,1952.6,1.02476]
[1742571006514,1.39857794,1952.7,1952.6,1.02476]
[1742571006716,1.0245,1953.1,1953.0,1.02452]
[1742571006917,1.0245,1953.1,1953.0,1.02455]
[1742571007122,2.4154,1953.1,1953.0,1.02455]
[1742571007326,2.4154,1953.1,1953.0,41.82455]
[1742571007918,2.4154,1953.1,1953.0,42.51805]
[1742571008317,1.3909,1953.1,1953.0,42.51805]
[1742571008527,0.00767794,1953.2,1953.1,1.0245]
[1742571008822,1.3888,1953.5,1953.3,1.02437]
[1742571009023,2.41309,1953.5,1953.4,2.0998]
[1742571009231,2.41309,1953.5,1953.1,4.1501]
[1742571009232,1.3888,1953.5,1953.1,4.1501]
[1742571009419,1.02439,1953.3,1953.2,1.4063]
[1742571009722,1.02445,1953.2,1953.1,1.4046]
[1742571009919,1.02445,1953.2,1953.1,3.8354]
[1742571010120,2.41324,1953.3,1953.2,1.02445]
[1742571010316,0.00767794,1953.4,1953.3,1.02439]
[1742571010718,0.00767794,1953.4,1953.3,2.43069]
[1742571011819,1.02439,1953.3,1953.2,4.46341]
[1742571012023,2.41999,1953.3,1953.2,4.46341]
[1742571012225,1.3956,1953.3,1953.2,1.02441]
[1742571012424,2.41999,1953.3,1953.2,2.36331]
[1742571014022,0.00767794,1953.4,1953.3,1.02439]
[1742571014227,0.00767794,1953.4,1953.3,2.36329]
[1742571015930,3.2078,1953.8,1953.7,1.02419]
[1742571016132,1.02424,1953.6,1953.5,3.438]
[1742571016326,1.02424,1953.6,1953.5,1.4196]
[1742571016521,1.02424,1953.6,1953.5,2.44389]
[1742571017226,1.02424,1953.6,1953.5,1.4196]
[1742571017427,1.02424,1953.6,1953.5,2.44389]
[1742571017827,2.43551794,1953.7,1953.6,1.02424]
[1742571018124,2.43551794,1953.7,1953.6,1.3442]
[1742571018326,0.00767794,1953.7,1953.6,5.57624]
[1742571018525,5.99774,1954.3,1953.7,1.02419]
[1742571018526,1.68562,1954.3,1953.7,1.02419]
[1742571018723,1.407,1954.1,1954.0,1.02403]
[1742571019125,0.6563,1954.3,1953.9,2.6963]
[1742571019431,2.0633,1954.3,1954.2,1.02392]
[1742571019627,1.407,1954.3,1954.2,1.02392]
[1742571020022,2.4309,1954.3,1954.1,1.3442]
[1742571020332,1.02392,1954.2,1954.1,1.3442]
[1742571020624,3.08932,1954.2,1954.1,40.8]
[1742571020829,5.5034,1954.2,1953.6,6.6458]
[1742571021033,1.4091,1954.1,1953.6,9.4024]
[1742571021232,4.6169,1954.1,1953.7,2.43905]
[1742571021433,1.02413,1953.8,1953.7,1.4149]
[1742571022119,1.02411,1953.9,1953.8,1.02411]
[1742571022324,1.02413,1953.8,1953.7,2.43905]
[1742571022935,1.02411,1953.9,1953.8,1.02412]
[1742571023333,1.4091,1954.0,1953.9,1.02408]
[1742571023836,2.43313,1954.0,1953.9,1.02408]
[1742571024034,2.43313,1954.0,1953.9,2.40078]
[1742571025934,1.4091,1954.0,1953.9,2.40078]
[1742571026134,1.4042,1954.2,1954.1,1.02398]
[1742571026339,1.03151794,1954.4,1954.3,1.02387]
[1742571026543,2.34321794,1954.4,1954.3,1.02387]
[1742571026837,1.31937794,1954.4,1954.3,1.02387]
[1742571027142,2.34319794,1954.4,1954.3,1.02387]
[1742571027439,1.31937794,1954.4,1954.3,1.02387]
[1742571028133,1.31937794,1954.4,1954.3,2.33727]
[1742571028532,2.34319794,1954.4,1954.3,2.33727]
[1742571029135,1.31937794,1954.4,1954.3,2.33727]
[1742571031645,0.00767794,1954.4,1954.3,2.33727]
[1742571032244,2.37839794,1954.4,1954.3,2.33727]
[1742571032543,2.37839794,1954.4,1954.3,1.3134]
[1742571032754,1.02398,1954.1,1954.0,2.3551]
[1742571033049,1.02398,1954.1,1954.0,1.9583]
[1742571033245,1.02398,1954.1,1954.0,1.2916]
[1742571033752,1.02402,1954.1,1954.0,1.02399]
[1742571033949,1.4135,1954.2,1954.1,1.02398]
[1742571034344,2.43742,1954.2,1954.1,1.02398]
[1742571034652,1.4135,1954.2,1954.1,1.02398]
[1742571035043,2.43742,1954.2,1954.1,1.02398]
[1742571035445,2.43742,1954.2,1954.0,1.2916]
[1742571035446,1.02398,1954.1,1954.0,1.2916]
[1742571035748,1.02417,1953.8,1953.7,1.02414]
[1742571036048,1.02411,1953.9,1953.8,1.02408]
[1742571036246,1.02411,1953.9,1953.8,2.41828]
[1742571037252,1.3395,1954.0,1953.9,1.02408]
[1742571037453,0.6777,1954.3,1954.0,2.56008]
[1742571037454,1.70161,1954.3,1954.0,2.56008]
[1742571037753,2.36342,1954.2,1954.1,2.41818]
[1742571037954,2.36342,1954.2,1954.1,1.3942]
[1742571038857,1.3395,1954.2,1954.1,2.41818]
[1742571039746,2.36342,1954.2,1954.1,2.41818]
[1742571039943,2.36342,1954.2,1954.1,1.3942]
[1742571040146,1.02398,1954.1,1954.0,5.11149]
[1742571040350,2.36828,1954.1,1954.0,6.42659]
[1742571041153,1.3443,1954.1,1954.0,6.42659]
[1742571042551,1.02391,1954.3,1954.2,1.02388]
[1742571042755,1.02391,1954.3,1954.0,7.96262]
[1742571042756,0.00767794,1954.4,1954.3,1.02387]
[1742571043452,1.42877794,1954.4,1954.3,1.73787]
[1742571043649,0.00767794,1954.4,1954.3,1.73787]
[1742571044049,0.00767794,1954.4,1954.3,3.11987]
[1742571044252,1.03149794,1954.4,1954.3,3.11987]
[1742571044548,1.03149794,1954.4,1954.3,43.20587]
[1742571045248,1.36407794,1954.4,1954.3,43.20587]
[1742571045853,2.38789794,1954.4,1954.3,43.20587]
[1742571046056,1.36407794,1954.4,1954.3,43.20587]
[1742571046860,2.38789794,1954.4,1954.3,41.82387]
[1742571047154,2.38789794,1954.4,1954.3,1.02387]
[1742571047351,2.38789794,1954.4,1954.3,2.35317]
[1742571047552,1.36407794,1954.4,1954.3,43.15317]
[1742571048356,2.38789794,1954.4,1954.2,3.436]
[1742571048563,2.38789794,1954.4,1954.3,1.02387]
[1742571048763,1.03149794,1954.4,1954.3,1.02387]
[1742571048954,1.03149794,1954.4,1954.3,2.34557]
[1742571050365,0.00767794,1954.4,1954.3,2.34557]
[1742571051658,1.03149794,1954.4,1954.3,2.34557]
[1742571051862,0.00767794,1954.4,1954.3,2.34557]
[1742571052057,1.03149794,1954.4,1954.3,2.34557]
[1742571052465,0.00767794,1954.4,1954.3,2.34557]
[1742571053959,1.03149794,1954.4,1954.3,2.34557]
[1742571054160,0.00767794,1954.4,1954.3,2.34557]
[1742571055063,1.03149794,1954.4,1954.3,2.34557]
[1742571055263,1.02387,1954.3,1954.2,40.8]
[1742571055459,1.66712,1954.3,1954.2,1.02392]
[1742571055663,1.02392,1954.2,1954.1,2.41004]
[1742571055862,1.02408,1954.0,1953.9,1.02404]
[1742571056062,1.02408,1954.0,1953.9,2.41014]
[1742571056462,4.0782,1954.3,1953.9,45.3939]
[1742571056658,0.00767794,1954.4,1954.3,1.02387]
[1742571057261,3.2078,1955.1,1954.3,5.7078]
[1742571057460,1.02353,1955.0,1954.9,1.02353]
[1742571057666,1.02356,1954.9,1954.8,1.9554]
[1742571057871,1.02365,1954.8,1954.7,1.02363]
[1742571058068,1.02365,1954.8,1954.7,2.31183]
[1742571058263,1.02359,1954.9,1954.8,1.02355]
[1742571058463,1.02359,1954.9,1954.8,1.2882]
[1742571058664,1.02361,1954.8,1954.7,1.02362]
[1742571058864,6.40966,1955.1,1954.7,3.84735]
[1742571059064,1.02357,1955.0,1954.9,1.02351]
[1742571060468,4.8745,1955.1,1955.0,1.0235]
[1742571060668,6.40975,1955.1,1954.6,3.44267794]
[1742571060869,1.02366,1954.7,1954.6,4.46634794]
[1742571061065,1.02366,1954.7,1954.6,0.00767794]
[1742571061270,1.02366,1954.7,1954.6,1.03138794]
[1742571061476,1.02366,1954.7,1954.6,0.00767794]
[1742571062172,1.70576,1954.7,1954.6,0.00767794]
[1742571062375,1.79332501,1954.7,1954.6,0.00767794]
[1742571062568,1.70576,1954.7,1954.6,0.00767794]
[1742571062768,0.6821,1954.7,1954.6,1.03138794]
[1742571062971,6.6428,1955.1,1955.0,1.0235]
[1742571063272,2.55878,1955.0,1954.7,1.9567]
[1742571063475,2.55878,1955.0,1954.6,3.21547794]
[1742571063476,1.02366,1954.7,1954.6,0.00767794]
[1742571063975,7.66646,1954.7,1954.6,0.00767794]
[1742571064179,7.66646,1954.7,1954.2,3.01339]
[1742571064180,1.02387,1954.3,1954.2,3.01339]
[1742571064578,1.02387,1954.3,1954.2,43.81339]
[1742571065674,1.68410794,1954.4,1954.3,1.02387]
[1742571065980,1.68410794,1954.4,1954.3,2.31657]
[1742571066476,0.00767794,1954.4,1954.3,2.31657]
[1742571066982,1.03149794,1954.4,1954.3,2.31657]
[1742571067377,0.00767794,1954.4,1954.3,2.31657]
[1742571067678,9.848,1954.7,1954.6,1.02371]
[1742571067874,2.31396,1954.7,1954.6,1.02371]
[1742571068076,1.2903,1954.7,1954.6,1.02371]
[1742571068276,5.15542,1954.9,1954.8,1.02361]
[1742571068777,3.435,1954.9,1954.8,1.02361]
[1742571068972,1.02361,1954.8,1954.7,2.42012]
[1742571069472,2.5591,1954.8,1954.5,4.45876]
[1742571069673,1.02371,1954.6,1954.5,1.3739]
[1742571069879,1.02377,1954.5,1954.4,1.70319]
[1742571070079,1.02377,1954.5,1954.4,3.07709]
[1742571070483,1.02377,1954.5,1954.4,2.0533]
[1742571070670,2.36946,1954.6,1954.4,2.0533]
[1742571070878,2.36946,1954.6,1954.5,2.39767]
[1742571071085,3.2078,1954.8,1954.7,1.02366]
[1742571071283,4.5535,1954.8,1954.7,1.02366]
[1742571071584,5.57711,1954.8,1954.7,1.02366]
[1742571071986,1.02366,1954.7,1954.6,2.39758]
[1742571072180,2.31326,1954.7,1954.6,2.39758]
[1742571072386,1.02366,1954.8,1954.7,1.02366]
[1742571072684,1.2896,1954.8,1954.7,3.14846]
[1742571072885,4.8174,1955.1,1954.7,2.1248]
[1742571073092,4.8174,1955.1,1954.9,1.02352]
[1742571073093,1.02355,1955.0,1954.9,1.02352]
[1742571073481,1.3824,1955.1,1954.8,1.67678]
[1742571073482,1.02356,1954.9,1954.8,1.67678]
[1742571073879,1.02354,1955.0,1954.9,1.02352]
[1742571074277,2.31314,1955.0,1954.9,2.43662]
[1742571074581,2.31314,1955.0,1954.9,1.4131]
[1742571074786,1.02356,1954.9,1954.8,1.67677]
[1742571074987,1.02361,1954.8,1954.7,0.7117]
[1742571075289,1.02366,1954.7,1954.6,1.332]
[1742571075587,3.07816,1954.7,1954.6,1.332]
[1742571075981,1.02377,1954.5,1954.4,1.67859]
[1742571076180,9.20122,1954.5,1954.1,1.03163794]
[1742571076490,1.02391,1954.3,1954.2,1.0239]
[1742571076696,3.03186,1954.4,1954.3,1.02387]
[1742571076889,3.434,1954.5,1954.4,1.02382]
[1742571077189,4.1323,1954.7,1954.3,3.89167]
[1742571077374,1.02373,1954.6,1954.5,1.02373]
[1742571077578,1.722,1954.7,1954.6,1.02371]
[1742571078589,0.6983,1954.7,1954.6,1.02371]
[1742571078786,1.02362,1954.8,1954.7,1.02362]
[1742571079192,1.02367,1954.7,1954.6,1.02369]
[1742571079584,1.02371,1954.6,1954.5,1.3097]
[1742571079783,1.02371,1954.6,1954.5,2.33347]
[1742571079979,1.02371,1954.6,1954.5,1.3097]
[1742571080186,1.02371,1954.6,1954.5,2.33347]
[1742571080690,1.02371,1954.6,1954.3,6.6418]
[1742571080691,1.02382,1954.4,1954.3,1.02385]
[1742571081082,1.02382,1954.4,1954.3,2.42824]
[1742571081482,1.02382,1954.4,1954.3,1.4044]
[1742571081684,1.02386,1954.4,1954.3,1.02386]
[1742571081882,1.02386,1954.4,1954.3,2.42826]
[1742571082085,1.02382,1954.4,1954.3,2.42822]
[1742571082491,1.02387,1954.3,1954.2,43.16468]
[1742571082791,1.02387,1954.3,1954.2,44.56908]
[1742571083188,1.02387,1954.3,1954.2,40.8]
[1742571083488,1.02387,1954.3,1954.2,41.82392]
[1742571083692,1.02387,1954.3,1954.2,43.22832]
[1742571083891,1.02387,1954.3,1954.2,42.2044]
[1742571084294,1.02387,1954.3,1954.2,43.22832]
[1742571084692,1.02387,1954.3,1954.2,44.56652]
[1742571085089,1.2999,1954.6,1954.3,2.55968]